Cogmind - Beta 13 @@@ ROGUE MODE // 2024.04.12 @ 18:12:10 Player: monkeman Result: Destroyed by G-67 Veteran with Plasma Rifle Performance ------------- Evolutions (7) 3500 Regions Visited (7) 1400 Robots Destroyed (47) 235 Value Destroyed (1767) 1767 Prototype IDs (22) 440 Alien Tech Used (0) 0 Bonus (673) 673 TOTAL SCORE: 8015 Bonus ------- High Alert Combat Kills 13 Entered Garrisons 200 Used RIF Installer 500 Friendly Fire -40 Cogmind --------- Core Integrity 0/1300 Matter 96/300 Energy 24/100 System Corruption 6% Temperature Cool (49) Movement Core (50) Location -3/Research Parts ------- > --- POWER (1) -------- (None) > --- PROPULSION (5) --- (None) > --- UTILITY (10) ----- (None) > --- WEAPON (5) ------- (None) > --- INVENTORY (5) ---- Antigrav Array Relay Coupler [Swarmer] (49) Relay Coupler [Duelist] (27) Relay Coupler [Sentry] (20) Peak State ------------ > --- POWER ------------ Meta Core > --- PROPULSION ------- Light Treads Treaded Titanium Exoskeleton > --- UTILITY ---------- Armored Scrap Engine Core Analyzer Precision Matter Filter Scrap Shield Advanced Shield Generator Advanced System Shield > --- WEAPON ----------- Advanced Beam Cannon Light Cannon Thermal Beam Construct/G EM Proton Construct/C Thermal Plasma Construct/G > --- INVENTORY -------- Multitool Spear [Rating: 85] Favorites ----------- Power Meta Core Engine Light Ion Engine Power Core Meta Core Reactor Light Antimatter Reactor Propulsion Light Treads Treads Light Treads Leg Aluminum Leg Wheel Subdweller Monowheel Hover Unit Antigrav Array Utility Medium Armor Plating Device Armored Scrap Engine Storage High-capacity Storage Unit Processor Advanced Targeting Computer Hackware Advanced System Shield Protection Medium Armor Plating Weapon Advanced Beam Cannon Energy Gun Constructs Energy Cannon Advanced Beam Cannon Ballistic Gun Light Assault Rifle Ballistic Cannon Light Cannon Launcher Grenade Launcher Special Weapon Multitool Piercing Weapon Spear Build | -11 -10 -10 -7 -5 -5 -4 -3 ------- Run | Yrd Mat Sub Rec Fac Gar Fac Res Slots Evolved 14 | . . . . 10 . 2 2 Power . | . . . . . . . . Propulsion 3 | . . . . 2 . 1 . Utility 8 | . . . . 6 . . 2 Weapon 3 | . . . . 2 . 1 . Parts Attached 63 | 6 10 16 2 5 . 7 17 Power 6 | 1 1 1 . . . 1 2 Engine 3 | 1 1 . . . . . 1 Core 1 | . . 1 . . . . . Reactor 2 | . . . . . . 1 1 Propulsion 12 | 2 3 3 . . . . 4 Treads 5 | . 3 2 . . . . . Leg 3 | 2 . . . . . . 1 Wheel 1 | . . 1 . . . . . Hover 3 | . . . . . . . 3 Flight . | . . . . . . . . Utility 23 | 1 3 4 1 5 . 5 4 Device 9 | . . 1 1 2 . 2 3 Storage 4 | 1 2 1 . . . . . Processor 5 | . . . . 1 . 3 1 Hackware 1 | . . . . 1 . . . Protection 4 | . 1 2 . 1 . . . Artifact . | . . . . . . . . Weapon 22 | 2 3 8 1 . . 1 7 Energy Gun 2 | . . . . . . . 2 Energy Cannon 4 | . 2 . 1 . . . 1 Ballistic Gun 7 | 2 1 4 . . . . . Ballistic Cannon 3 | . . 2 . . . . 1 Launcher 2 | . . 1 . . . . 1 Special Weapon 3 | . . 1 . . . . 2 Impact Weapon . | . . . . . . . . Slashing Weapon . | . . . . . . . . Piercing Weapon 1 | . . . . . . 1 . Special Melee Weapon . | . . . . . . . . Unidentified Prototypes 4 | . 1 . . 1 . . 2 Parts Lost 47 | . 1 6 1 . 18 5 16 Power 6 | . 1 . . . 3 1 1 Propulsion 11 | . . 2 . . 5 . 4 Utility 17 | . . 2 . . 6 4 5 Weapon 13 | . . 2 1 . 4 . 6 Highest Loss Streak 16 | . 1 2 1 . 16 2 7 To Critical Strikes . | . . . . . . . . Average Slot Usage (%) 80 | . 95 97 88 66 58 26 27 Engine 4 | . 13 1 . . . . . Core 4 | . . 8 11 5 4 . . Treads 19 | . 25 28 22 7 3 . . Leg 1 | . 2 . . 5 2 . . Wheel 1 | . . . 11 1 . . . Device 5 | . . 4 11 10 14 8 6 Storage 7 | . 14 10 . . . . . Processor 2 | . . . . 5 4 10 9 Protection 7 | . 10 12 . 5 . . . Energy Cannon 9 | . 9 10 18 13 13 . . Ballistic Gun 8 | . 18 9 4 . . . 1 Ballistic Cannon 5 | . . 8 11 9 4 . 1 Naked Turns 3 | . . . . . . . 3 Heaviest Build 71 | 10 54 71 18 52 52 15 19 Greatest Support 104 | 20 40 60 20 69 104 3 64 Greatest Overweight (x) 6 | 2 2 2 . 2 4 4 6 Average Overweight (x) . | . . . . . . 1 1 Largest Inventory Capacity 20 | 8 20 20 5 5 5 5 5 Average Capacity 12 | 7 16 18 5 5 5 5 5 Most Carried 20 | 5 15 20 5 3 5 5 5 Average Carried 10 | 3 11 16 4 2 3 4 3 Final Capacity 20 | 8 15 20 5 5 5 5 5 Final Carried 17 | 5 14 17 5 2 5 5 5 Scrap Engine Consumption 52 | . . . 33 7 7 2 3 Constructs Created 7 | . . . . 4 2 . 1 Constructs Modified 7 | . . . . 2 5 . . Class Distribution -------------------- 49% | Mutant 30% | Tank 12% | Gunner 7% | Construct Dominant Class ---------------- Mutant | -10/Materials Tank | -10/Subcaves Gunner | -7/Recycling Tank | -5/Factory Construct | -5/Garrison Mutant | -4/Factory Mutant | -3/Research Resources | -11 -10 -10 -7 -5 -5 -4 -3 ----------- Run | Yrd Mat Sub Rec Fac Gar Fac Res Matter Collected 1227 | 245 245 441 69 . 117 . 110 Remotely . | . . . . . . . . Salvage Created 1830 | . 515 677 133 . 344 . 161 Parts 99 | . 26 43 7 . 11 . 12 Haulers Intercepted 2 | . 2 . . . . . . Recyclers Shooed 1 | . . . 1 . . . . Parts Field Recycled . | . . . . . . . . Retrieved Matter . | . . . . . . . . Parts Self-Destructed 22 | . . 22 . . . . . Prevented . | . . . . . . . . Kills | -11 -10 -10 -7 -5 -5 -4 -3 ------- Run | Yrd Mat Sub Rec Fac Gar Fac Res Combat Hostiles Destroyed 39 | . 12 16 1 . 6 . 4 Guns 11 | . 7 3 . . . . 1 Cannons 27 | . 5 12 1 . 6 . 3 AOE 1 | . . 1 . . . . . Classes Destroyed 11 | . 5 3 1 . . . 2 Hauler 2 | . 2 . . . . . . Recycler 1 | . . . 1 . . . . Turret 2 | . . 2 . . . . . Watcher 3 | . 3 . . . . . . Swarmer 10 | . 6 4 . . . . . Cutter 1 | . . . . . . . 1 Grunt 11 | . 4 1 . . 4 . 2 Duelist 1 | . . . . . . . 1 Sentry 4 | . . 1 1 . 2 . . Artisan 1 | . . 1 . . . . . Subdweller 12 | . 2 10 . . . . . Best Kill Streak 4 | . 4 4 2 . 4 . 2 Combat Bots Only 4 | . 3 4 1 . 4 . 2 Max Kills in Single Turn 1 | . 1 1 1 . 1 . 1 Gunslinging . | . . . . . . . . Exploded 1 | . . 1 . . . . . Melee . | . . . . . . . . Uniques/NPCs Destroyed . | . . . . . . . . Combat | -11 -10 -10 -7 -5 -5 -4 -3 -------- Run | Yrd Mat Sub Rec Fac Gar Fac Res Hostile Shots Fired 753 | . 58 131 27 . 215 52 270 Missed 258 | . 12 45 14 . 47 23 117 Damage Taken 8651 | . 503 1201 95 62 3174 657 2959 Core 2377 | . 70 167 6 . 652 165 1317 Absorbed by Shields 80 | . . . . 22 58 . . Regen/Repaired (Parts) 25 | . . . . . 25 . . Core Remaining (%) 55 | 100 . . 2 . 34 85 . Volleys Fired 164 | . 60 55 6 . 18 . 25 Largest 5 | . 2 3 3 . 5 . 3 Hottest 243 | . 88 133 171 . 243 . 159 Shots Fired 372 | . 120 139 17 . 63 . 33 Gun 153 | . 90 42 . . 11 . 10 Cannon 211 | . 30 93 17 . 52 . 19 Launcher 3 | . . 2 . . . . 1 Special 5 | . . 2 . . . . 3 Kinetic 229 | . 90 83 6 . 32 . 18 Thermal 122 | . 30 54 11 . 13 . 14 Explosive 3 | . . 2 . . . . 1 Electromagnetic 18 | . . . . . 18 . . Robot Hit Streak 18 | . 12 18 3 . 7 . 6 Robot Miss Streak 4 | . 3 2 3 . 4 . 3 Penetration Max . | . . . . . . . . Secondary Targets 1 | . 1 . . . . . . Max Gunslinging Chain 1 | . 1 . . . . . . Shots Hit Robots 219 | . 76 83 7 . 34 . 19 Core Hits 97 | . 35 34 4 . 17 . 7 Critical Kills . | . . . . . . . . Critical Parts Destroyed 2 | . 1 . . . 1 . . Critical Strikes 7 | . 1 2 . . 1 . 3 Destroy 2 | . 1 . . . 1 . . Blast 5 | . . 2 . . . . 3 Melee Attacks 8 | . . . . . . 8 . Impact . | . . . . . . . . Slashing . | . . . . . . . . Piercing 8 | . . . . . . 8 . Sneak Attacks . | . . . . . . . . Combat Hostiles . | . . . . . . . . Follow-up Attacks . | . . . . . . . . Damage Inflicted 4157 | . 994 1629 139 . 720 . 675 Guns 1144 | . 520 458 . . 79 . 87 Cannons 2864 | . 454 1042 139 . 641 . 588 Explosions 119 | . . 119 . . . . . Melee . | . . . . . . . . Ramming 20 | . 20 . . . . . . Kinetic 2285 | . 520 866 34 . 315 . 550 Thermal 1427 | . 454 644 105 . 99 . 125 Explosive 119 | . . 119 . . . . . Electromagnetic 306 | . . . . . 306 . . Impact . | . . . . . . . . Slashing . | . . . . . . . . Piercing . | . . . . . . . . Highest Corruption 6 | . . . . . . 1 6 Average Corruption 2 | . . . . . . 1 3 Corruption Purged . | . . . . . . . . Corruption Blocked . | . . . . . . . . Effects 2 | . . . . . . . 2 Matter Fused 1 | . . . . . . . 1 Heat Flow Errors 1 | . . . . . . . 1 Overload Shots . | . . . . . . . . Overflow Damage 36 | . 1 . . . . . 35 Projectiles 36 | . 1 . . . . . 35 Explosions . | . . . . . . . . Melee . | . . . . . . . . Knockbacks 20 | . . 8 . . 3 . 9 Impact . | . . . . . . . . Kinetic 20 | . . 8 . . 3 . 9 Secondary . | . . . . . . . . Self-Inflicted Damage . | . . . . . . . . Shots . | . . . . . . . . Rammed 5 | . 4 . . . . . 1 Targets Rammed 5 | . 4 . . . . . 1 Kicked . | . . . . . . . . Crushed . | . . . . . . . . Highest Temperature 549 | . 180 262 369 . 549 . 83 Average Temperature 129 | . 64 55 208 . 274 . 33 Received Heat Transfer 2326 | . 183 692 24 . 1074 99 254 Effects 4 | . . . . . 4 . . Shutdowns 1 | . . . . . 1 . . Interference 2 | . . . . . 2 . . Matter Decay 1 | . . . . . 1 . . Siege Activations . | . . . . . . . . Robots Corrupted . | . . . . . . . . Combat Hostiles . | . . . . . . . . Parts Fried . | . . . . . . . . Impact Corruptions . | . . . . . . . . Robots Melted . | . . . . . . . . Combat Hostiles . | . . . . . . . . Parts Melted 3 | . 1 1 . . 1 . . Heat Transferred 2578 | . 814 1172 185 . 185 . 222 Parts Sabotaged . | . . . . . . . . Parts Stolen . | . . . . . . . . Parts Stripped . | . . . . . . . . Power Chain Reactions . | . . . . . . . . Alert | -11 -10 -10 -7 -5 -5 -4 -3 ------- Run | Yrd Mat Sub Rec Fac Gar Fac Res Peak Influence 444 | . 231 . 444 183 274 103 143 Initial 388 | . . . 388 157 128 80 22 Average 145 | . 84 . 367 160 201 79 48 Maximum Alert Level 2 | . 1 . 2 . 1 . . Low Security (%) 72 | 100 89 . . 100 45 100 100 Level 1 19 | . 10 . 50 . 54 . . Level 2 7 | . . . 49 . . . . Level 3 . | . . . . . . . . Level 4 . | . . . . . . . . Level 5 . | . . . . . . . . High Security . | . . . . . . . . Max Security . | . . . . . . . . Squads Dispatched 3 | . . . . 1 . . 2 Investigation . | . . . . . . . . Extermination 1 | . . . . 1 . . . Reinforcement 2 | . . . . . . . 2 Assault . | . . . . . . . . Garrison . | . . . . . . . . Intercept . | . . . . . . . . Searches Triggered . | . . . . . . . . Construction Impeded 1 | . . . . . . . 1 Haulers Reinforced . | . . . . . . . . Active Scanning Responses . | . . . . . . . . Cargo Convoy Interrupts . | . . . . . . . . Stealth | -11 -10 -10 -7 -5 -5 -4 -3 --------- Run | Yrd Mat Sub Rec Fac Gar Fac Res Distress Signals 3 | . 2 . . . . 1 . Communications Jammed . | . . . . . . . . Distress Signals . | . . . . . . . . Times Spotted 124 | . 34 47 1 . 14 4 24 Peak Tracking Total 15 | . 4 5 2 1 10 5 15 Tactical Retreats 10 | . 2 4 1 . . . 3 Traps | -11 -10 -10 -7 -5 -5 -4 -3 ------- Run | Yrd Mat Sub Rec Fac Gar Fac Res Traps Triggered 5 | . . 1 . 1 1 . 2 Indirectly . | . . . . . . . . Trap Hack Attempts . | . . . . . . . . Triggered . | . . . . . . . . Disarmed . | . . . . . . . . Reprogrammed . | . . . . . . . . Reused . | . . . . . . . . Traps Extracted . | . . . . . . . . Installed 1 | . . 1 . . . . . Triggered . | . . . . . . . . Machines | -11 -10 -10 -7 -5 -5 -4 -3 ---------- Run | Yrd Mat Sub Rec Fac Gar Fac Res Machines Disabled 6 | . . 4 . . 1 . 1 Max in Single Turn 1 | . . 1 . . 1 . 1 Garrison Relay 1 | . . . . . 1 . . Machines Repaired . | . . . . . . . . Machines Dismantled . | . . . . . . . . Machines Sabotaged . | . . . . . . . . Overloaded Fab Kills . | . . . . . . . . Hacking | -11 -10 -10 -7 -5 -5 -4 -3 --------- Run | Yrd Mat Sub Rec Fac Gar Fac Res Machines Accessed 20 | . 6 2 9 2 1 . . Terminals 13 | . 6 . 5 1 1 . . Fabricators . | . . . . . . . . Repair Stations . | . . . . . . . . Recycling Units 4 | . . . 4 . . . . Scanalyzers . | . . . . . . . . Garrison Access 1 | . . . . 1 . . . Total Hacks 53 | . 15 13 20 4 1 . . Successful 34 | . 12 13 6 2 1 . . Failed 18 | . 2 . 14 2 . . . Catastrophic 1 | . . . 1 . . . . Database Lockouts 1 | . 1 . . . . . . Manual 13 | . 6 . 7 . . . . Terminals 30 | . 15 . 11 3 1 . . Fabricators . | . . . . . . . . Repair Stations . | . . . . . . . . Recycling Units 9 | . . . 9 . . . . Scanalyzers . | . . . . . . . . Garrison Access 1 | . . . . 1 . . . Terminal Hacks 28 | . 10 13 3 1 1 . . Record 13 | . . 12 . 1 . . . Part Schematic 1 | . . . 1 . . . . Robot Analysis 3 | . 3 . . . . . . Prototype ID Bank 3 | . 2 . 1 . . . . Level Access Points 1 | . 1 . . . . . . Terminal Index 1 | . . . 1 . . . . Locate Traps 2 | . 2 . . . . . . Maintenance Status 1 | . 1 . . . . . . Registered Components 1 | . 1 . . . . . . Security Stations 1 | . . . . . 1 . . Derelict Proto ID Bank 1 | . . 1 . . . . . Fabricator Hacks . | . . . . . . . . Repair Station Hacks . | . . . . . . . . Recycling Unit Hacks 2 | . . . 2 . . . . Retrieve Matter 1 | . . . 1 . . . . Retrieve Components 1 | . . . 1 . . . . Scanalyzer . | . . . . . . . . Garrison Access Hacks 1 | . . . . 1 . . . Unlock Access 1 | . . . . 1 . . . Unauthorized Hacks 3 | . 2 . 1 . . . . Terminals 3 | . 2 . 1 . . . . Botnet 3 | . 2 . 1 . . . . Fabricators . | . . . . . . . . Repair Stations . | . . . . . . . . Recycling Units . | . . . . . . . . Scanalyzers . | . . . . . . . . Garrison Access . | . . . . . . . . Data Cores Recovered . | . . . . . . . . Used . | . . . . . . . . Hacking Detections 15 | . 5 . 9 1 . . . Full Trace Events 1 | . . . 1 . . . . Feedback Events . | . . . . . . . . Feedback Blocked . | . . . . . . . . Robot Schematics Acquired . | . . . . . . . . Robots Built . | . . . . . . . . Authchips . | . . . . . . . . Time . | . . . . . . . . Total Robot Build Rating . | . . . . . . . . Part Schematics Acquired 1 | . . . 1 . . . . Parts Built . | . . . . . . . . Authchips . | . . . . . . . . Time . | . . . . . . . . Total Part Build Rating . | . . . . . . . . Parts Repaired . | . . . . . . . . Time . | . . . . . . . . Parts Recycled . | . . . . . . . . Recycled Matter . | . . . . . . . . Retrieved Matter . | . . . . . . . . Retrieved Components 3 | . . . 3 . . . . Parts Scanalyzed . | . . . . . . . . Part Schematics Acquired . | . . . . . . . . Parts Damaged . | . . . . . . . . Bothacking | -11 -10 -10 -7 -5 -5 -4 -3 ------------ Run | Yrd Mat Sub Rec Fac Gar Fac Res Used RIF Installer 1 | . . . . . 1 . . Robots Hacked . | . . . . . . . . Non-combat . | . . . . . . . . Combat . | . . . . . . . . Robot Hacks Applied . | . . . . . . . . Relay Couplers Released 4 | . . . . . 4 . . Machine Destruction 4 | . . . . . 4 . . Fabnet Peak Effective % . | . . . . . . . . Robots Rewired . | . . . . . . . . Allies Hacked . | . . . . . . . . Hacks Repelled . | . . . . . . . . Allies | -11 -10 -10 -7 -5 -5 -4 -3 -------- Run | Yrd Mat Sub Rec Fac Gar Fac Res Total Allies . | . . . . . . . . Largest Group . | . . . . . . . . Highest-Rated Group . | . . . . . . . . Highest-Rated Ally . | . . . . . . . . Total Orders . | . . . . . . . . Ally Attacks . | . . . . . . . . Total Damage . | . . . . . . . . Kills . | . . . . . . . . Allies Corrupted . | . . . . . . . . Allies Melted . | . . . . . . . . Intel | -11 -10 -10 -7 -5 -5 -4 -3 ------- Run | Yrd Mat Sub Rec Fac Gar Fac Res Robot Analysis Total 3 | . 3 . . . . . . Derelict Logs Recovered 1 | . . 1 . . . . . Drone Launches 4 | . . . . . . 4 . Drone Recoveries 3 | . . . . . . 3 . Exploration | -11 -10 -10 -7 -5 -5 -4 -3 ------------- Run | Yrd Mat Sub Rec Fac Gar Fac Res Turns Passed 5502 | 66 1366 1968 551 264 524 342 421 Spaces Moved 3023 | 39 624 829 429 211 321 267 303 Core 428 | 5 . . . . 33 267 123 Treads 1518 | . 568 813 . . 137 . . Legs 467 | 34 56 . . 211 151 . 15 Wheels 445 | . . 16 429 . . . . Hover 165 | . . . . . . . 165 Flight . | . . . . . . . . Fastest Speed 50 | 50 120 130 110 87 50 50 50 Average Speed 156 | 120 181 208 110 121 141 115 109 Slowest Speed 350 | 150 260 240 110 206 250 250 350 Overloaded Moves . | . . . . . . . . Propulsion Burnouts . | . . . . . . . . Robots Hopped . | . . . . . . . . Cave-ins Triggered . | . . . . . . . . Exploration Rate (%) 35 | 3 85 60 78 6 34 7 10 Regions Visited 7 Branch Regions 2 Pre-discovered Areas . | . . . . . . . . Known Exits Taken 1 | . . . . 1 . . . Unknown Exits Taken 5 | 1 1 1 1 . . 1 . Scrap Searched 6 | . . 6 . . . . . Spaces Dug 4 | . . . . . . 4 . Terrain Destroyed 27 | . . 14 . . . 4 9 Melee 4 | . . . . . . 4 . Projectile 4 | . . 1 . . . . 3 AOE 19 | . . 13 . . . . 6 Terrain Rammed . | . . . . . . . . Walls Destroyed . | . . . . . . . . Machines Disabled . | . . . . . . . . Actions | -11 -10 -10 -7 -5 -5 -4 -3 --------- Run | Yrd Mat Sub Rec Fac Gar Fac Res Total 3464 | 55 752 959 495 219 347 283 354 Wait 126 | 6 21 36 54 . 5 . 4 Move 3016 | 38 623 828 428 210 320 266 303 Hop . | . . . . . . . . Pick Up 48 | 5 21 13 2 1 3 1 2 Fast Attach 34 | 6 2 5 1 2 . 6 12 Attach 16 | . 1 6 1 3 . 1 4 Detach 1 | . . . . . . . 1 Swap 13 | . 7 5 . . . . 1 Drop 31 | . 13 10 3 3 1 . 1 Fire 164 | . 60 55 6 . 18 . 25 Melee 8 | . . . . . . 8 . Ram 1 | . . . . . . . 1 Kick . | . . . . . . . . Crush 4 | . 4 . . . . . . Escape Stasis . | . . . . . . . . Rewire . | . . . . . . . . Trap 1 | . . 1 . . . . . Miscellaneous 1 | . . . . . . 1 . Route ------- -11/Scrapyard -10/Materials (discovered 5 exits: *Mat x3 / [*Min] / *Sub) -10/Subcaves -7/Recycling -5/Factory (discovered 2 exits: [*Upp] / Gar) -5/Garrison -4/Factory -3/Research History --------- Turn | Location | Event 15 | -11/Scrapyard | Discovered new exit (range 16) 67 | -11/Scrapyard | Entered Materials 309 | -10/Materials | Build established: Mutant 579 | -10/Materials | Discovered new exit (range 16) 731 | -10/Materials | Discovered new exit (range 11) 764 | -10/Materials | Central database locked down 1067 | -10/Materials | Derelicts attacked the area 1166 | -10/Materials | Discovered new exit (range 14) 1361 | -10/Materials | Identified exit to Materials 1412 | -10/Materials | Discovered new exit (range 8) 1433 | -10/Materials | Entered Subcaves 1597 | -10/Subcaves | Visited Clippyterm 1602 | -10/Subcaves | Learned Factory stockpile data 1602 | -10/Subcaves | Learned Factory garrison access intel 1682 | -10/Subcaves | Visited 4L-MR0's lab 1697 | -10/Subcaves | Found Meta Core 1698 | -10/Subcaves | Attached Meta Core, gained temporary slots: Propulsion, Utility, Weapon 1838 | -10/Subcaves | Core integrity fell below 50% 1904 | -10/Subcaves | Learned Materials emergency access door positions 2147 | -10/Subcaves | Shifting Twisted Machinery released Sub. Laser 2166 | -10/Subcaves | Shifting Twisted Machinery released Sub. Machine Gun 2379 | -10/Subcaves | Shifting Twisted Machinery released Battle Cannon 2436 | -10/Subcaves | Shifting Twisted Machinery released Shrapnel Trap 2484 | -10/Subcaves | Build established: Tank 2509 | -10/Subcaves | A swath of the cavern ceiling suddenly collapsed 2716 | -10/Subcaves | Core integrity fell below 20% 2977 | -10/Subcaves | Shifting Twisted Machinery released Sub. Power Source 2981 | -10/Subcaves | Shifting Twisted Machinery released Mak. Light Armor Plating 3275 | -10/Subcaves | Discovered new exit (range 12) 3401 | -10/Subcaves | Entered Recycling 3403 | -7/Recycling | Found Scrap Engine 3702 | -7/Recycling | Build established: Gunner 3806 | -7/Recycling | Discovered new exit (range 6) 3952 | -7/Recycling | Entered Factory 3952 | -5/Factory | Evolved 10 slots: Propulsion x2, Utility x6, Weapon x2 3954 | -5/Factory | Loaded intel: 4 garrison access locations 4005 | -5/Factory | Discovered new exit (range 15) 4206 | -5/Factory | Identified exit to Garrison 4216 | -5/Factory | Entered Garrison 4268 | -5/Garrison | Triggered checkpoint 4341 | -5/Garrison | Learned Factory security intel 4411 | -5/Garrison | Garrison Relay disabled 4463 | -5/Garrison | Installed Relay Interface Framework 4549 | -5/Garrison | Build established: Construct 4604 | -5/Garrison | Spotted B-75 Beast 4638 | -5/Garrison | Triggered checkpoint 4656 | -5/Garrison | Triggered checkpoint 4688 | -5/Garrison | Triggered checkpoint 4706 | -5/Garrison | Core integrity fell below 50% 4735 | -5/Garrison | Discovered new exit (range 10) 4740 | -5/Garrison | Entered Factory 4740 | -4/Factory | Evolved 2 slots: Propulsion x1, Weapon x1 4764 | -4/Factory | Lost 16 parts (3p4n5u4w) 4984 | -4/Factory | Build established: Mutant 5038 | -4/Factory | Spotted B-86 Titan 5080 | -4/Factory | Discovered new exit (range 4) 5082 | -4/Factory | Entered Research 5082 | -3/Research | Evolved 2 slots: Utility x2 5321 | -3/Research | Lost 3 parts (1u2w) 5372 | -3/Research | Core integrity fell below 50% 5375 | -3/Research | Lost 5 parts (1u4w) 5451 | -3/Research | Spotted B-86 Titan 5501 | -3/Research | Core integrity fell below 20% 5503 | -3/Research | Destroyed by G-67 Veteran with Plasma Rifle Last Messages --------------- 05487_ A bubble of electromagnetic force engulfs the area. 05488_ C-35 Carver destroyed. 05488_ R-10 Processor knocked back. 05488_ Knocked back. 05494_ Acquired Imp. Concussive RPG. 05495_ Imp. Concussive RPG expended. 05496_ Antigrav Array destroyed. 05496_ Imp. Terrain Scanner destroyed. 05496_ Adv. Targeting Computer destroyed. 05497_ U-05 Engineer lays Concrete. 05499_ P-80 Master resets P-80 Master, system corruption cleaned. 05499_ Antigrav Array destroyed. 05500_ Adv. Terrain Scan Processor severed. 05500_ U-05 Engineer lays Concrete. 05501_ System corrupted: Heat flow error (+129). 05502_ U-05 Engineer lays Concrete. 05502_ Penetrated by Slug. 05503_ U-05 Engineer lays Concrete. Map ----- +----------------------------------------------------+ | | | | | ?????????????????????????????????????????????????? | | ?????????????????????????????????????????????????? | | ?????????????????????????????????????????????????? | | ?????????????????????????????????????????????????? | | ?????????????????????????????????????????????????? | | ?????????????????????????????????????????????????? | | ?????????????????????????????????????????????????? | | ?????????????????????????????????????????????????? | | ??????????????????????? ?????????????????????? | | ??????????????????????# ???????????????????? | | ??????????????????????# ????????????????? | | ??????????????????????# ??????????????? | | ??????????????????????# ???????????????? | | ???????? ?????######+## ????????????????? | | ???????? ??????* + #????????????????? | | ???????# ??????? # #????????????????? | | ???????# ???????? # #????????????????? | | ???????# ?????????# #????????????????? | | ???????# ?????????# #????????????????? | | ???????# ?????????# #????????????????? | | ?? ????# #???????## #????????????????? | | ????#+## #???????# #????????????????? | | ????+ ######### #????????????????? | | ????# @ #????????????????? | | ????# #????????????????? | | ##??# +????????????????? | | ????# p!*= c #????????????????? | | ???## ]% = #????????????????? | | ???# #########g u ###????????????????? | | ????# #???????#g """ #??????????????????? | | ? ??# #??? ???# """" #??????????????????? | | ??#?# #??? ?? ; "F"" #??????????????????? | | ? ###+##/#? ?? h# "" #??????????????????? | | ??# #????" ##w """ #??????????????????? | | ? # # ??"" ??# "" ??????????????????? | | ??# /=H#??"S ??# ?????????????????? | | ??# !%*#???"" ## ? ????????????????? | | ??# !=#?? ?? ??# ? ????????????????? | | ? # | # ? ???## ########?????????????????????? | | ######+###????????# ##???????????????????????????? | | #???#???##?# #????????????????????????????? | | #####?#??#?##??? ?????????????????????????????? | | #???#??#????#??? ?????????????????????????????? | | #?######??????????????????????????????????????? | | # +? ??????????????????????????????? | | " #??##?#?#??????????????????????????????? | | # #?###?#????????????????????????????????? | | + ##?????????????????????????????????????? | +----------------------------------------------------+ Best States ------------- Heat Dissipation 46 Energy Generation 23 Energy Capacity 302 Matter Stores 300 Matter Capacity 300 Sight Range 16 Terrain Scan Range 16 Terrain Scan Density 210 Armor Coverage 800 Evasion (%) 62 Targeting Accuracy 24 Core Analysis 6 Recoil Reduction 4 Matter Filtering 50 Kinecelleration 40 Defensive Hacking 14 Item Schematics ----------------- Imp. Hacking Suite | -7/Recycling | Hacked Robot Schematics ------------------ None Fabricated ------------ Nothing Alien Tech Used ----------------- None Achievements -------------- Omniscient Cartographer Challenges ------------ None Game ------ Seed PhysicsArcSlayer Manual? 0 Play Time 00:45:06 Cumulative 27.4 hours Start 2024.04.12 @ 17:26:48 End 2024.04.12 @ 18:12:10 Sessions 1 Manual Loads 0 Difficulty Rogue Special Mode None Game No. 33 Rogue 33 Adventurer 0 Explorer 0 Win Type - Total 1 Types 1/0/0/0/0/0/0/0/0 Lore% 18 Gallery% 33 Achievement% 25 Wizard Run 0 Options --------- Layout 1 ASCII 0 Keyboard 0 Movement Mouse Keybinds 0 Fullscreen 1 Font 24/Smallcaps Map View 50x35 Zoom Use 0% Tactical HUD 1 Map Filters NONE Filters NONE Steam 1 RUN: e80a4617-a4bb-4210-bcd4-6d485b5cc6e6